[Event "German Bundesliga 2023-24"]
[Site "Germany"]
[Date "2024.02.04"]
[Round "7.10"]
[White "McShane, Luke J"]
[Black "Kraemer, Martin"]
[Result "1/2-1/2"]
[ECO "C83"]
[WhiteElo "2618"]
[BlackElo "2579"]
[Annotator "ChessBase"]
[PlyCount "253"]
[EventDate "2023.10.20"]
[EventType "team-tourn"]
[EventCountry "GER"]
[SourceTitle "playchess.com"]
[Source "ChessBase"]
[SourceQuality "1"]
[TimeControl "40/6000+30:3000+30"]

1. e4 {[%emt 0:00:04]} e5 {[%emt 0:00:04]} 2. Nf3 {[%emt 0:00:07]} Nc6 {[%emt 0:00:02]} 3. Bb5 {[%emt 0:00:06]} a6 {[%emt 0:00:04]} 4. Ba4 {[%emt 0:00:06]} Nf6 {[%emt 0:00:03]} 5. O-O {[%emt 0:00:09]} Nxe4 {[%emt 0:00:26]} 6. d4 {[%emt 0:00:12]} b5 {[%emt 0:00:10]} 7. Bb3 {[%emt 0:00:07]} d5 {[%emt 0:00:09]} 8. dxe5 {[%emt 0:00:14]} Be6 {[%emt 0:00:04]} 9. c3 {[%emt 0:00:29]} Be7 {[%emt 0:00:40]} 10. Nbd2 {[%emt 0:01:17]} Nc5 {[%emt 0:00:43]} 11. Bc2 {[%emt 0:00:12]} d4 {[%emt 0:00:24]} 12. Nb3 {[%emt 0:01:09]} d3 {[%emt 0:00:13]} 13. Nxc5 {[%emt 0:00:06]} dxc2 {[%emt 0:01:09]} 14. Qxd8+ {[%emt 0:00:04]} Rxd8 {[%emt 0:00:16]} 15. Nxe6 {[%emt 0:00:04]} fxe6 {[%emt 0:00:05]} 16. Be3 {[%emt 0:00:04]} Rd5 {[%emt 0:01:24]} 17. Rfc1 {[%emt 0:00:32]} Nxe5 {[%emt 0:01:11]} 18. Nxe5 {[%emt 0:00:06]} Rxe5 {[%emt 0:00:04]} 19. Rxc2 {[%emt 0:00:06]} Rd5 {[%emt 0:15:07]} 20. c4 {[%emt 0:05:36]} bxc4 {[%emt 0:00:45]} 21. Rxc4 {[%emt 0:00:10]} Kd7 {[%emt 0:07:23]} 22. Rac1 {[%emt 0:04:32]} Bd6 {[%emt 0:14:10]} 23. b3 {[%emt 0:00:29]} Rb8 {[%emt 0:02:28]} 24. Kf1 {[%emt 0:00:33]} Ra5 {[%emt 0:10:39]} 25. R1c2 {[%emt 0:01:38]} g6 {[%emt 0:10:02]} 26. h3 {[%emt 0:01:14]} Rab5 {[%emt 0:04:26]} 27. Rh4 {[%emt 0:11:37]} h5 {[%emt 0:08:12]} 28. Rhc4 {[%emt 0:00:09]} Rb4 {[%emt 0:04:41]} 29. Bd2 {[%emt 0:07:30]} Rxc4 {[%emt 0:03:51]} 30. Rxc4 {[%emt 0:00:31]} Rb6 {[%emt 0:00:11]} 31. Ke2 {[%emt 0:00:50]} Rc6 {[%emt 0:01:23]} 32. Ra4 {[%emt 0:00:17]} Ke7 {[%emt 0:02:56]} 33. Bg5+ {[%emt 0:06:26]} Ke8 {[%emt 0:00:54]} 34. Be3 {[%emt 0:01:10]} Ke7 {[%emt 0:00:49]} 35. Kd3 {[%emt 0:00:18]} Be5 {[%emt 0:04:16]} 36. Ra5 {[%emt 0:03:31]} Bd6 {[%emt 0:01:33]} 37. Bd4 {[%emt 0:03:02]} Bb4 {[%emt 0:04:53]} 38. Ra4 {[%emt 0:12:16]} Bd6 {[%emt 0:00:05]} 39. Bc3 {[%emt 0:06:07]} Ke8 {[%emt 0:09:16]} 40. f3 {[%emt 0:01:23]} Be7 {[%emt 0:04:40]} 41. Be5 {[%emt 0:56:43]} Bd6 {[%emt 0:05:46]} 42. Bd4 {[%emt 0:00:00]} Bg3 {[%emt 0:02:23]} 43. Ra5 {[%emt 0:00:00]} Be1 {[%emt 0:04:18]} 44. Re5 {[%emt 0:00:00]} Bh4 {[%emt 0:01:37]} 45. Re4 {[%emt 0:00:00]} Be7 {[%emt 0:00:48]} 46. Be5 {[%emt 0:00:00]} Kf7 {[%emt 0:03:43]} 47. g4 {[%emt 0:00:00]} Rc5 {[%emt 0:03:51]} 48. Bc3 {[%emt 0:00:00]} Rd5+ {[%emt 0:10:09]} 49. Ke2 {[%emt 0:00:00]} Rc5 {[%emt 0:00:54]} 50. Kd3 {[%emt 0:00:00]} Rd5+ {[%emt 0:00:10]} 51. Kc2 {[%emt 0:00:00]} Rc5 {[%emt 0:00:20]} 52. Rf4+ {[%emt 0:03:17]} Ke8 {[%emt 0:00:29]} 53. a4 {[%emt 0:03:10]} Bd6 {[%emt 0:02:12]} 54. Re4 {[%emt 0:00:47]} Kd7 {[%emt 0:00:16]} 55. Re1 {[%emt 0:03:31]} Bg3 {[%emt 0:01:18]} 56. Re2 {[%emt 0:00:29]} Bd6 {[%emt 0:00:23]} 57. Re4 {[%emt 0:02:29]} Be7 {[%emt 0:01:06]} 58. b4 {[%emt 0:06:24]} Rd5 {[%emt 0:00:40]} 59. Rf4 {[%emt 0:01:33]} Ke8 {[%emt 0:00:42]} 60. Rc4 {[%emt 0:01:00]} Kd7 {[%emt 0:00:31]} 61. Bd2 {[%emt 0:04:42]} Bd6 {[%emt 0:00:23]} 62. Be3 {[%emt 0:00:58]} Re5 {[%emt 0:00:55]} 63. Kd3 {[%emt 0:00:31]} Rd5+ {[%emt 0:00:07]} 64. Ke2 {[%emt 0:00:32]} Re5 {[%emt 0:01:36]} 65. Kf2 {[%emt 0:00:18]} Rd5 {[%emt 0:00:12]} 66. Bd4 {[%emt 0:00:43]} Be7 {[%emt 0:01:53]} 67. Ke3 {[%emt 0:01:40]} Bf8 {[%emt 0:02:10]} 68. Ke2 {[%emt 0:02:44]} Be7 {[%emt 0:00:40]} 69. Bc3 {[%emt 0:00:29]} Bd6 {[%emt 0:00:05]} 70. Re4 {[%emt 0:01:11]} Ke7 {[%emt 0:00:18]} 71. Bd2 {[%emt 0:03:41]} Re5 {[%emt 0:02:02]} 72. Rxe5 {[%emt 0:01:51]} Bxe5 {[%emt 0:00:02]} 73. Kd3 {[%emt 0:00:07]} c6 {[%emt 0:00:32]} 74. Be3 {[%emt 0:02:11]} Ke8 {[%emt 0:05:08]} 75. Ke4 {[%emt 0:00:40]} Bd6 {[%emt 0:00:30]} 76. Bc5 {[%emt 0:00:25]} Bc7 {[%emt 0:00:12]} 77. Kd4 {[%emt 0:00:57]} Kd7 {[%emt 0:00:45]} 78. Kc4 {[%emt 0:00:10]} Bf4 {[%emt 0:00:38]} 79. Bf8 {[%emt 0:00:19]} Bg3 {[%emt 0:00:36]} 80. Kd4 {[%emt 0:00:21]} Bb8 {[%emt 0:00:32]} 81. Ke4 {[%emt 0:00:39]} Ke8 {[%emt 0:00:07]} 82. Bg7 {[%emt 0:00:32]} Bd6 {[%emt 0:00:05]} 83. Bc3 {[%emt 0:00:04]} Kf7 {[%emt 0:00:42]} 84. Kd4 {[%emt 0:00:16]} Ke7 {[%emt 0:00:09]} 85. Kc4 {[%emt 0:00:07]} Kd7 {[%emt 0:00:11]} 86. Bd4 {[%emt 0:00:27]} Be7 {[%emt 0:00:40]} 87. Bc5 {[%emt 0:00:33]} Bf6 {[%emt 0:00:21]} 88. Bf8 {[%emt 0:00:35]} Bh4 {[%emt 0:00:10]} 89. Kd4 {[%emt 0:01:02]} Ke8 {[%emt 0:00:57]} 90. Bh6 {[%emt 0:02:28]} Be7 {[%emt 0:02:23]} 91. Ke5 {[%emt 0:01:00]} Kf7 {[%emt 0:00:50]} 92. Bd2 {[%emt 0:00:15]} Bf8 {[%emt 0:00:14]} 93. Be1 {[%emt 0:05:18]} Ke7 {[%emt 0:02:28]} 94. Kf4 {[%emt 0:00:19]} Bh6+ {[%emt 0:01:10]} 95. Ke4 {[%emt 0:01:02]} Bg7 {[%emt 0:01:51]} 96. Bd2 {[%emt 0:01:19]} Bf6 {[%emt 0:00:59]} 97. Be3 {[%emt 0:00:00]} Kf7 {[%emt 0:01:56]} 98. Bc5 {[%emt 0:01:29]} Bc3 {[%emt 0:01:34]} 99. Bd6 {[%emt 0:00:09]} Ke8 {[%emt 0:00:39]} 100. Kd3 {[%emt 0:00:39]} Be1 {[%emt 0:00:20]} 101. Kd4 {[%emt 0:00:19]} Kd7 {[%emt 0:00:23]} 102. Bc5 {[%emt 0:00:22]} Bg3 {[%emt 0:00:19]} 103. Ke4 {[%emt 0:00:13]} Bc7 {[%emt 0:00:38]} 104. Bd4 {[%emt 0:00:58]} Bd6 {[%emt 0:00:14]} 105. Bc3 {[%emt 0:00:04]} Ke7 {[%emt 0:00:20]} 106. Kd4 {[%emt 0:01:41]} Kd7 {[%emt 0:00:05]} 107. Bd2 {[%emt 0:00:05]} Ke7 {[%emt 0:00:21]} 108. Kc4 {[%emt 0:00:03]} Kd7 {[%emt 0:00:03]} 109. Be3 {[%emt 0:00:09]} Bb8 {[%emt 0:00:26]} 110. Bc5 {[%emt 0:00:38]} Bf4 {[%emt 0:00:16]} 111. Kd4 {[%emt 0:00:34]} Bc7 {[%emt 0:01:02]} 112. Ke4 {[%emt 0:00:30]} Ke8 {[%emt 0:00:09]} 113. Kd4 {[%emt 0:01:24]} Kd7 {[%emt 0:00:21]} 114. Bf8 {[%emt 0:00:06]} Bb8 {[%emt 0:00:26]} 115. Ke4 {[%emt 0:01:35]} Ke8 {[%emt 0:00:06]} 116. Bc5 {[%emt 0:00:31]} Bc7 {[%emt 0:00:42]} 117. gxh5 {[%emt 0:01:16]} gxh5 {[%emt 0:00:01]} 118. f4 {[%emt 0:00:05]} Kf7 {[%emt 0:00:05]} 119. f5 {[%emt 0:00:06]} Bb8 {[%emt 0:01:09]} 120. Bd4 {[%emt 0:00:40]} Bd6 {[%emt 0:00:22]} 121. Bc3 {[%emt 0:00:13]} Bf8 {[%emt 0:02:59]} 122. Bd2 {[%emt 0:01:12]} Bd6 {[%emt 0:00:04]} 123. Be1 {[%emt 0:00:07]} Kf6 {[%emt 0:00:13]} 124. Bc3+ {[%emt 0:00:16]} Kf7 {[%emt 0:00:01]} 125. Be1 {[%emt 0:00:34]} Kf6 {[%emt 0:00:06]} 126. Bc3+ {[%emt 0:00:06]} Kf7 {[%emt 0:00:03]} 127. Be1 {[%emt 0:00:06]} 1/2-1/2

[Event "German Bundesliga 2023-24"]
[Site "Germany"]
[Date "2024.02.03"]
[Round "7.10"]
[White "Abel, Dennes"]
[Black "Motylev, Alexander"]
[Result "0-1"]
[ECO "A17"]
[WhiteElo "2404"]
[BlackElo "2619"]
[Annotator "ChessBase"]
[PlyCount "86"]
[EventDate "2023.10.20"]
[EventType "team-tourn"]
[EventCountry "GER"]
[SourceTitle "playchess.com"]
[Source "ChessBase"]
[SourceQuality "1"]
[TimeControl "40/6000+30:3000+30"]

1. Nf3 {[%emt 0:00:10]} d5 {[%emt 0:00:19]} 2. e3 {[%emt 0:00:20]} Nf6 {[%emt 0:00:17]} 3. c4 {[%emt 0:00:08]} e6 {[%emt 0:00:16]} 4. Nc3 {[%emt 0:00:24]} b6 {[%emt 0:00:33]} 5. b3 {[%emt 0:00:52]} Bb7 {[%emt 0:00:20]} 6. Bb2 {[%emt 0:00:24]} Nbd7 {[%emt 0:04:47]} 7. cxd5 {[%emt 0:03:43]} exd5 {[%emt 0:00:11]} 8. Rc1 {[%emt 0:02:48]} a6 {[%emt 0:01:13]} 9. Ne2 {[%emt 0:04:29]} c5 {[%emt 0:07:53]} 10. d4 {[%emt 0:09:51]} c4 {[%emt 0:05:04]} 11. bxc4 {[%emt 0:19:15]} dxc4 {[%emt 0:01:38]} 12. Rxc4 {[%emt 0:04:10]} b5 {[%emt 0:02:23]} 13. Rc2 {[%emt 0:10:20]} Be4 {[%emt 0:11:06]} 14. Rc1 {[%emt 0:10:21]} Bb4+ {[%emt 0:02:03]} 15. Nd2 {[%emt 0:02:44]} O-O {[%emt 0:07:48]} 16. a3 {[%emt 0:02:13]} Ba5 {[%emt 0:01:00]} 17. Ng3 {[%emt 0:05:23]} Re8 {[%emt 0:07:43]} 18. f3 {[%emt 0:08:32]} Bg6 {[%emt 0:04:52]} 19. e4 {[%emt 0:05:55]} Bxe4 {[%emt 0:29:25]} 20. fxe4 {[%emt 0:00:41]} Nxe4 {[%emt 0:00:22]} 21. Ngxe4 {[%emt 0:02:57]} Qh4+ {[%emt 0:01:32]} 22. Ke2 {[%emt 0:01:16]} Nf6 {[%emt 0:16:33]} 23. g3 {[%emt 0:01:12]} Qh6 {[%emt 0:01:17]} 24. Bg2 {[%emt 0:05:22]} Ng4 {[%emt 0:01:01]} 25. Nf1 {[%emt 0:01:41]} f5 {[%emt 0:01:22]} 26. h3 {[%emt 0:01:11]} Nf6 {[%emt 0:00:57]} 27. Kf2 {[%emt 0:00:57]} fxe4 {[%emt 0:00:28]} 28. Ne3 {[%emt 0:03:28]} Rf8 {[%emt 0:00:16]} 29. Ke2 {[%emt 0:01:20]} Nh5 {[%emt 0:00:17]} 30. Qb3+ {[%emt 0:02:03]} Kh8 {[%emt 0:00:01]} 31. Nf1 {[%emt 0:00:09]} Rae8 {[%emt 0:02:10]} 32. Qe3 {[%emt 0:00:39]} Rxf1 {[%emt 0:00:48]} 33. Qxh6 {[%emt 0:01:15]} Nxg3+ {[%emt 0:00:23]} 34. Ke3 {[%emt 0:00:04]} Nf5+ {[%emt 0:00:34]} 35. Ke2 {[%emt 0:00:03]} Ng3+ {[%emt 0:00:31]} 36. Ke3 {[%emt 0:00:01]} Rxc1 {[%emt 0:00:32]} 37. Rxc1 {[%emt 0:02:03]} Nf5+ {[%emt 0:00:19]} 38. Kf4 {[%emt 0:00:33]} Nxh6 {[%emt 0:00:12]} 39. Rc2 {[%emt 0:00:21]} e3 {[%emt 0:00:21]} 40. Re2 {[%emt 0:00:27]} Bc7+ {[%emt 0:01:00]} 41. Kg5 {[%emt 0:03:17]} Rf8 {[%emt 0:02:28]} 42. Be4 {[%emt 0:06:32]} Bd8+ {[%emt 0:01:10]} 43. Kh5 {[%emt 0:00:08]} Rf4 {[%emt 0:00:22]} 0-1

[Event "German Bundesliga 2023-24"]
[Site "Germany"]
[Date "2024.02.03"]
[Round "7.11"]
[White "Lagarde, Maxime"]
[Black "Lammers, Markus"]
[Result "1-0"]
[ECO "A46"]
[WhiteElo "2629"]
[BlackElo "2336"]
[Annotator "ChessBase"]
[PlyCount "59"]
[EventDate "2023.10.20"]
[EventType "team-tourn"]
[EventCountry "GER"]
[SourceTitle "playchess.com"]
[Source "ChessBase"]
[SourceQuality "1"]
[TimeControl "40/6000+30:3000+30"]

1. Nf3 {[%emt 0:00:02]} d5 {[%emt 0:00:31]} 2. g3 {[%emt 0:00:42]} Nf6 {[%emt 0:00:50]} 3. Bg2 {[%emt 0:00:04]} e6 {[%emt 0:02:54]} 4. O-O {[%emt 0:00:29]} Be7 {[%emt 0:00:14]} 5. d4 {[%emt 0:02:46]} b5 {[%emt 0:02:41]} 6. a4 {[%emt 0:00:45]} b4 {[%emt 0:02:29]} 7. c4 {[%emt 0:01:02]} bxc3 {[%emt 0:01:26]} 8. Nxc3 {[%emt 0:00:07]} Na6 {[%emt 0:03:43]} 9. Bf4 {[%emt 0:12:54]} O-O {[%emt 0:03:10]} 10. Qb1 {[%emt 0:08:20]} Nb4 {[%emt 0:15:16]} 11. Rc1 {[%emt 0:05:10]} Ba6 {[%emt 0:05:17]} 12. Bf1 {[%emt 0:04:36]} c5 {[%emt 0:20:12]} 13. Nb5 {[%emt 0:05:32]} Bxb5 {[%emt 0:01:19]} 14. axb5 {[%emt 0:00:04]} Qb6 {[%emt 0:01:09]} 15. e3 {[%emt 0:01:32]} Ne4 {[%emt 0:04:09]} 16. b3 {[%emt 0:06:44]} f6 {[%emt 0:16:27]} 17. h4 {[%emt 0:03:26]} Rf7 {[%emt 0:14:13]} 18. Ra4 {[%emt 0:08:18]} Raf8 {[%emt 0:00:54]} 19. dxc5 {[%emt 0:15:01]} Bxc5 {[%emt 0:00:16]} 20. Rxb4 {[%emt 0:00:09]} Bxb4 {[%emt 0:00:29]} 21. Rc6 {[%emt 0:00:04]} Qd8 {[%emt 0:02:14]} 22. Rxe6 {[%emt 0:02:13]} g5 {[%emt 0:00:51]} 23. hxg5 {[%emt 0:01:27]} fxg5 {[%emt 0:00:13]} 24. Rxe4 {[%emt 0:00:21]} Rxf4 {[%emt 0:03:23]} 25. exf4 {[%emt 0:03:09]} dxe4 {[%emt 0:00:11]} 26. Nxg5 {[%emt 0:01:56]} Qe7 {[%emt 0:02:38]} 27. Bc4+ {[%emt 0:02:52]} Kh8 {[%emt 0:00:01]} 28. Ne6 {[%emt 0:01:21]} Rc8 {[%emt 0:02:32]} 29. Qa1+ {[%emt 0:00:59]} Kg8 {[%emt 0:00:29]} 30. Nc7+ {[%emt 0:00:13]} 1-0

[Event "German Bundesliga 2023-24"]
[Site "Germany"]
[Date "2024.02.03"]
[Round "7.11"]
[White "Mendonca, Leon Luke"]
[Black "Tregubov, Pavel V."]
[Result "1/2-1/2"]
[ECO "E48"]
[WhiteElo "2614"]
[BlackElo "2567"]
[Annotator "ChessBase"]
[PlyCount "112"]
[EventDate "2023.10.20"]
[EventType "team-tourn"]
[EventCountry "GER"]
[SourceTitle "playchess.com"]
[Source "ChessBase"]
[SourceQuality "1"]
[TimeControl "40/6000+30:3000+30"]

1. d4 {[%emt 0:00:09]} Nf6 {[%emt 0:00:08]} 2. c4 {[%emt 0:00:06]} e6 {[%emt 0:00:04]} 3. Nc3 {[%emt 0:00:37]} Bb4 {[%emt 0:00:11]} 4. e3 {[%emt 0:00:15]} d5 {[%emt 0:04:25]} 5. cxd5 {[%emt 0:09:07]} exd5 {[%emt 0:00:51]} 6. Bd3 {[%emt 0:00:09]} O-O {[%emt 0:00:39]} 7. Nge2 {[%emt 0:00:07]} Re8 {[%emt 0:11:47]} 8. O-O {[%emt 0:01:17]} Bd6 {[%emt 0:00:36]} 9. a3 {[%emt 0:00:29]} Nbd7 {[%emt 0:07:15]} 10. Bd2 {[%emt 0:02:29]} c5 {[%emt 0:34:39]} 11. Nf4 {[%emt 0:31:37]} Bxf4 {[%emt 0:03:04]} 12. exf4 {[%emt 0:00:23]} cxd4 {[%emt 0:00:10]} 13. Nb5 {[%emt 0:02:23]} Nc5 {[%emt 0:03:34]} 14. Qc2 {[%emt 0:01:26]} Qb6 {[%emt 0:09:53]} 15. Ba5 {[%emt 0:04:22]} Qxa5 16. Qxc5 {[%emt 0:00:22]} Bd7 {[%emt 0:04:37]} 17. b4 {[%emt 0:02:46]} Qa6 {[%emt 0:08:00]} 18. a4 {[%emt 0:02:34]} Rec8 {[%emt 0:00:50]} 19. Qxd4 {[%emt 0:00:17]} Qb6 {[%emt 0:00:31]} 20. a5 {[%emt 0:03:37]} Qxd4 {[%emt 0:01:05]} 21. Nxd4 {[%emt 0:00:02]} Rc3 {[%emt 0:00:53]} 22. Rfd1 {[%emt 0:01:18]} Rac8 {[%emt 0:00:15]} 23. f3 {[%emt 0:03:44]} h5 {[%emt 0:00:05]} 24. Kf2 {[%emt 0:04:19]} Kf8 {[%emt 0:00:07]} 25. Ke3 {[%emt 0:09:01]} Ke7 {[%emt 0:02:09]} 26. f5 {[%emt 0:15:22]} Kd6 {[%emt 0:00:59]} 27. a6 {[%emt 0:01:20]} b6 {[%emt 0:00:26]} 28. Kf4 {[%emt 0:00:12]} Ne8 {[%emt 0:06:20]} 29. Kg5 {[%emt 0:02:12]} Nc7 {[%emt 0:00:43]} 30. h4 {[%emt 0:05:07]} Ke5 {[%emt 0:01:23]} 31. Bf1 {[%emt 0:05:15]} Rh8 {[%emt 0:06:40]} 32. Re1+ {[%emt 0:00:22]} Kd6 {[%emt 0:00:04]} 33. Kf4 {[%emt 0:00:38]} f6 {[%emt 0:00:53]} 34. Ra2 {[%emt 0:03:29]} Re8 {[%emt 0:00:35]} 35. Rxe8 {[%emt 0:00:10]} Bxe8 {[%emt 0:00:13]} 36. g4 {[%emt 0:00:07]} Rc1 {[%emt 0:00:52]} 37. Be2 {[%emt 0:00:59]} Rb1 {[%emt 0:00:44]} 38. Nc2 {[%emt 0:00:49]} hxg4 {[%emt 0:02:44]} 39. fxg4 {[%emt 0:00:03]} Bb5 {[%emt 0:00:06]} 40. Nd4 {[%emt 0:00:56]} Rxb4 {[%emt 0:00:54]} 41. Ke3 {[%emt 0:02:09]} Bxe2 {[%emt 0:14:31]} 42. Rxe2 {[%emt 0:00:08]} Nb5 {[%emt 0:12:35]} 43. Nxb5+ {[%emt 0:02:27]} Rxb5 {[%emt 0:00:04]} 44. h5 {[%emt 0:05:06]} d4+ {[%emt 0:07:39]} 45. Kxd4 {[%emt 0:02:31]} Rb4+ {[%emt 0:00:06]} 46. Kc3 {[%emt 0:01:45]} Rxg4 {[%emt 0:00:07]} 47. Re6+ {[%emt 0:00:34]} Kc5 {[%emt 0:00:28]} 48. Re7 {[%emt 0:00:17]} Rg3+ {[%emt 0:01:49]} 49. Kb2 {[%emt 0:00:15]} Rg5 {[%emt 0:01:49]} 50. Rxa7 {[%emt 0:00:12]} Kb5 {[%emt 0:00:04]} 51. h6 {[%emt 0:02:20]} gxh6 {[%emt 0:00:08]} 52. Rf7 {[%emt 0:00:08]} Kxa6 {[%emt 0:00:09]} 53. Rxf6 {[%emt 0:00:04]} h5 {[%emt 0:00:05]} 54. Rf8 {[%emt 0:01:53]} Kb5 {[%emt 0:00:50]} 55. f6 {[%emt 0:00:07]} Rf5 {[%emt 0:00:11]} 56. f7 {[%emt 0:00:20]} h4 {[%emt 0:00:15]} 1/2-1/2

[Event "German Bundesliga 2023-24"]
[Site "Germany"]
[Date "2024.02.04"]
[Round "7.11"]
[White "Krejci, Jan"]
[Black "Efimenko, Zahar"]
[Result "1/2-1/2"]
[ECO "C85"]
[WhiteElo "2517"]
[BlackElo "2575"]
[Annotator "ChessBase"]
[PlyCount "60"]
[EventDate "2023.10.20"]
[EventType "team-tourn"]
[EventCountry "GER"]
[SourceTitle "playchess.com"]
[Source "ChessBase"]
[SourceQuality "1"]
[TimeControl "40/6000+30:3000+30"]

1. e4 {[%emt 0:00:03]} e5 {[%emt 0:00:51]} 2. Nf3 {[%emt 0:00:04]} Nc6 {[%emt 0:00:06]} 3. Bb5 {[%emt 0:00:11]} a6 {[%emt 0:00:13]} 4. Ba4 {[%emt 0:00:05]} Nf6 {[%emt 0:00:12]} 5. O-O {[%emt 0:00:10]} Be7 {[%emt 0:00:15]} 6. Bxc6 {[%emt 0:05:14]} dxc6 {[%emt 0:00:25]} 7. d3 {[%emt 0:00:04]} Nd7 {[%emt 0:05:50]} 8. Nbd2 {[%emt 0:00:05]} O-O {[%emt 0:01:20]} 9. Nc4 {[%emt 0:00:03]} Bf6 {[%emt 0:07:57]} 10. b3 {[%emt 0:04:54]} Re8 {[%emt 0:01:19]} 11. Bb2 {[%emt 0:00:05]} c5 {[%emt 0:01:57]} 12. a4 {[%emt 0:07:36]} b6 {[%emt 0:03:12]} 13. Kh1 {[%emt 0:03:24]} a5 {[%emt 0:03:17]} 14. Ng1 {[%emt 0:05:05]} Nf8 {[%emt 0:06:57]} 15. Ne2 {[%emt 0:11:53]} Ng6 {[%emt 0:02:28]} 16. Ne3 {[%emt 0:05:28]} Bg5 {[%emt 0:07:44]} 17. Nd5 {[%emt 0:05:56]} f5 {[%emt 0:08:31]} 18. exf5 {[%emt 0:06:43]} Nh4 {[%emt 0:01:34]} 19. Ndc3 {[%emt 0:02:52]} Nxf5 {[%emt 0:03:37]} 20. Ne4 {[%emt 0:00:57]} Bh6 {[%emt 0:03:34]} 21. N2g3 {[%emt 0:02:12]} Nd4 {[%emt 0:01:29]} 22. Bxd4 {[%emt 0:05:55]} cxd4 {[%emt 0:00:38]} 23. Qf3 {[%emt 0:00:45]} Be6 {[%emt 0:04:28]} 24. Rae1 {[%emt 0:02:22]} Rf8 {[%emt 0:11:52]} 25. Qd1 {[%emt 0:04:46]} Qh4 {[%emt 0:05:38]} 26. Qh5 {[%emt 0:05:43]} Qxh5 {[%emt 0:00:56]} 27. Nxh5 {[%emt 0:00:02]} Rae8 {[%emt 0:00:52]} 28. h3 {[%emt 0:01:49]} Bf7 {[%emt 0:02:11]} 29. Nhg3 {[%emt 0:00:14]} Bd5 {[%emt 0:00:06]} 30. Re2 {[%emt 0:00:53]} Re6 {[%emt 0:03:22]} 1/2-1/2

[Event "German Bundesliga 2023-24"]
[Site "Germany"]
[Date "2024.02.04"]
[Round "7.12"]
[White "Van Foreest, Lucas"]
[Black "Polak, Tomas"]
[Result "1/2-1/2"]
[ECO "A14"]
[WhiteElo "2540"]
[BlackElo "2518"]
[Annotator "ChessBase"]
[PlyCount "44"]
[EventDate "2023.10.20"]
[EventType "team-tourn"]
[EventCountry "GER"]
[SourceTitle "playchess.com"]
[Source "ChessBase"]
[SourceQuality "1"]
[TimeControl "40/6000+30:3000+30"]

1. Nf3 {[%emt 0:00:13]} Nf6 {[%emt 0:00:22]} 2. c4 {[%emt 0:00:15]} e6 {[%emt 0:00:18]} 3. b3 {[%emt 0:00:25]} d5 {[%emt 0:03:01]} 4. Bb2 {[%emt 0:00:41]} Be7 {[%emt 0:01:08]} 5. g3 {[%emt 0:02:27]} O-O {[%emt 0:02:04]} 6. Bg2 {[%emt 0:00:54]} b6 {[%emt 0:00:44]} 7. O-O {[%emt 0:00:45]} Bb7 {[%emt 0:00:05]} 8. cxd5 {[%emt 0:01:11]} Nxd5 {[%emt 0:00:46]} 9. d4 {[%emt 0:04:35]} Nd7 {[%emt 0:00:51]} 10. Re1 {[%emt 0:01:22]} N5f6 {[%emt 0:21:52]} 11. Nc3 {[%emt 0:04:46]} c5 {[%emt 0:12:10]} 12. e4 {[%emt 0:00:24]} cxd4 {[%emt 0:00:16]} 13. Nxd4 {[%emt 0:04:42]} Ne5 {[%emt 0:05:58]} 14. Qe2 {[%emt 0:28:53]} Bc5 {[%emt 0:05:18]} 15. Nf3 {[%emt 0:08:22]} Nxf3+ {[%emt 0:17:45]} 16. Bxf3 {[%emt 0:00:12]} Qe7 {[%emt 0:00:13]} 17. e5 {[%emt 0:11:15]} Nd5 {[%emt 0:01:09]} 18. Nxd5 {[%emt 0:01:16]} Bxd5 {[%emt 0:00:40]} 19. Bxd5 {[%emt 0:00:48]} exd5 {[%emt 0:00:04]} 20. Rad1 {[%emt 0:03:49]} Rad8 {[%emt 0:04:53]} 21. Bd4 {[%emt 0:03:32]} Bb4 {[%emt 0:06:35]} 22. Rf1 {[%emt 0:00:04]} f6 {[%emt 0:00:25]} 1/2-1/2

[Event "German Bundesliga 2023-24"]
[Site "Germany"]
[Date "2024.02.03"]
[Round "7.12"]
[White "Zelbel, Patrick"]
[Black "Ernst, Sipke"]
[Result "1-0"]
[ECO "C47"]
[WhiteElo "2478"]
[BlackElo "2551"]
[Annotator "ChessBase"]
[PlyCount "51"]
[EventDate "2023.10.20"]
[EventType "team-tourn"]
[EventCountry "GER"]
[SourceTitle "playchess.com"]
[Source "ChessBase"]
[SourceQuality "1"]
[TimeControl "40/6000+30:3000+30"]

1. e4 {[%emt 0:00:05]} e5 {[%emt 0:00:07]} 2. Nf3 {[%emt 0:00:18]} Nc6 {[%emt 0:00:10]} 3. Nc3 {[%emt 0:01:03]} Nf6 {[%emt 0:00:18]} 4. d4 {[%emt 0:00:06]} exd4 {[%emt 0:00:07]} 5. Nxd4 {[%emt 0:00:06]} Bb4 {[%emt 0:00:32]} 6. Nxc6 {[%emt 0:00:08]} bxc6 {[%emt 0:00:05]} 7. Bd3 {[%emt 0:00:03]} O-O {[%emt 0:00:16]} 8. O-O {[%emt 0:00:11]} Re8 {[%emt 0:00:57]} 9. Bg5 {[%emt 0:01:21]} h6 {[%emt 0:03:08]} 10. Bh4 {[%emt 0:00:06]} d5 {[%emt 0:01:33]} 11. exd5 {[%emt 0:01:03]} g5 {[%emt 0:00:14]} 12. Bg3 {[%emt 0:00:06]} cxd5 {[%emt 0:00:04]} 13. Re1 {[%emt 0:07:57]} Rxe1+ {[%emt 0:14:46]} 14. Qxe1 {[%emt 0:00:02]} c6 {[%emt 0:01:27]} 15. a3 {[%emt 0:11:04]} Bf8 {[%emt 0:04:19]} 16. Na4 {[%emt 0:06:13]} c5 {[%emt 0:11:09]} 17. c4 {[%emt 0:09:01]} Bb7 {[%emt 0:05:30]} 18. Rd1 {[%emt 0:06:18]} Bc6 {[%emt 0:13:53]} 19. Bc2 {[%emt 0:02:33]} Qd7 {[%emt 0:00:54]} 20. Qa5 {[%emt 0:05:33]} Qb7 {[%emt 0:06:10]} 21. cxd5 {[%emt 0:16:17]} Bxd5 {[%emt 0:00:48]} 22. Qc3 {[%emt 0:05:53]} Qc6 {[%emt 0:13:44]} 23. Be5 {[%emt 0:06:13]} Bg7 {[%emt 0:13:22]} 24. Nxc5 {[%emt 0:08:38]} Rc8 {[%emt 0:03:51]} 25. b4 {[%emt 0:04:42]} Bxg2 {[%emt 0:05:24]} 26. Rd6 {[%emt 0:01:35]} 1-0